fUST/lending_fUST_20250615
["ID","MTS","AMOUNT","RATE_DAILY","PERIOD"]
[365847807,1749956828614,-2653.80712984,0.00021916,2]
[365847808,1749956828636,-500.0,0.00021916,2]
[365847809,1749956828657,-500.0,0.00021916,2]
[365847810,1749956828679,-500.0,0.00021916,2]
[365847811,1749956828701,-500.0,0.00021916,2]
[365847812,1749956828723,-498.9462687,0.00021916,2]
[365847813,1749956838122,-1.0537313,0.00021916,2]
[365847814,1749956838144,-180.26302759,0.00021916,2]
[365847815,1749956841097,-319.73697241,0.00021916,2]
[365847816,1749956841120,-500.0,0.00021916,2]
[365847817,1749956841143,-500.0,0.00021916,2]
[365847818,1749956841165,-500.0,0.00021916,2]
[365847819,1749956841188,-500.0,0.00021916,2]
[365847820,1749956841211,-500.0,0.00021916,2]
[365847821,1749956841234,-603.26823736,0.00021916,2]
[365847822,1749956841256,-500.0,0.00021916,2]
[365847823,1749956841279,-95.67697474,0.00021916,2]
[365847824,1749956851279,-404.32302526,0.00021916,2]
[365847825,1749956851302,-500.0,0.00021916,2]
[365847826,1749956851324,-500.0,0.00021916,2]
[365847827,1749956851345,-500.0,0.00021916,2]
[365847828,1749956851366,-460.33673546,0.00021916,2]
[365847857,1749957032060,-327.0,0.0002094,2]
[365847858,1749957032069,-500.0,0.00021154,2]
[365847859,1749957032078,-887.4769189,0.00021817,2]
[365847860,1749957032087,-336.04,0.00021907,3]
[365847861,1749957032097,-39.66326454,0.00021916,2]
[365847862,1749957032106,-200.0,0.00021916,2]
[365847863,1749957032115,-31.93229647,0.00021916,2]
[365847864,1749957032217,-268.06770353,0.00021916,2]
[365847865,1749957032226,-1000.0,0.00021916,2]
[365847866,1749957032235,-1000.0,0.00021916,2]
[365847867,1749957032244,-1000.0,0.00021916,2]
[365847868,1749957032253,-1000.0,0.00021916,2]
[365847869,1749957032262,-1000.0,0.00021916,2]
[365847870,1749957032271,-1000.0,0.00021916,2]
[365847871,1749957032280,-1000.0,0.00021916,2]
[365847872,1749957032289,-1000.0,0.00021916,2]
[365847873,1749957032298,-1000.0,0.00021916,2]
[365847874,1749957032307,-1000.0,0.00021916,2]
[365847875,1749957032321,-1000.0,0.00021916,2]
[365847876,1749957032330,-1000.0,0.00021916,2]
[365847877,1749957032339,-1000.0,0.00021916,2]
[365847878,1749957032348,-500.0,0.00021917,4]
[365847879,1749957032357,-460.0,0.00021917,4]
[365847880,1749957032366,-460.0,0.00021917,4]
[365847881,1749957032375,-287.3402249,0.00021917,4]
[365847882,1749957032384,-460.0,0.00021917,4]
[365847884,1749957032395,-460.0,0.00021917,4]
[365847886,1749957032404,-460.0,0.00021917,4]
[365847887,1749957032416,-207.89161072,0.00021917,4]
[365847890,1749957032426,-460.0,0.00021917,4]
[365847892,1749957032435,-460.0,0.00021917,4]
[365847893,1749957032445,-460.0,0.00021917,4]
[365847895,1749957032455,-460.0,0.00021917,4]
[365847897,1749957032464,-460.0,0.00021917,4]
[365847898,1749957032474,-460.0,0.00021917,4]
[365847900,1749957032483,-260.11910276,0.00021917,4]
[365847902,1749957032492,-460.0,0.00021917,4]
[365847904,1749957032501,-460.0,0.00021917,4]
[365847906,1749957032510,-213.33211583,0.00021917,4]
[365847908,1749957032519,-442.50095546,0.00021917,4]
[365847910,1749957032529,-460.0,0.00021917,4]
[365847912,1749957032539,-443.81944229,0.00021917,4]
[365847914,1749957032548,-548.89937545,0.00021917,4]
[365847915,1749957032562,-460.0,0.00021917,4]
[365847916,1749957032572,-440.0,0.00021917,4]
[365847917,1749957032582,-460.0,0.00021917,4]
[365847918,1749957032593,-233.04162,0.00021917,4]
[365847920,1749957032603,-404.11312759,0.00021917,4]
[365847922,1749957032613,-460.0,0.00021917,4]
[365847924,1749957032622,-460.0,0.00021917,4]
[365847926,1749957032636,-442.57860672,0.00021917,4]
[365847927,1749957032646,-446.21495258,0.00021917,4]
[365847928,1749957032655,-460.0,0.00021917,4]
[365847929,1749957032665,-460.0,0.00021917,4]
[365847930,1749957032675,-417.26534592,0.00021917,4]
[365847931,1749957032685,-460.0,0.00021917,4]
[365847932,1749957032695,-420.82193931,0.00021917,4]
[365847933,1749957032704,-326.54433413,0.00021917,4]
[365847934,1749957032714,-443.68241334,0.00021917,4]
[365847936,1749957032723,-500.0,0.00021917,4]
[365847938,1749957032733,-500.0,0.00021917,4]
[365847939,1749957032743,-460.0,0.00021917,4]
[365847940,1749957032753,-570.87341891,0.00021917,4]
[365847941,1749957032762,-460.0,0.00021917,4]
[365847942,1749957032773,-439.87346545,0.00021917,4]
[365847943,1749957032783,-460.0,0.00021917,4]
[365847944,1749957032792,-460.0,0.00021917,4]
[365847945,1749957032802,-521.75487887,0.00021917,4]
[365847946,1749957032814,-460.0,0.00021917,4]
[365847947,1749957032824,-460.0,0.00021917,4]
[365847948,1749957032833,-448.2887782,0.00021917,4]
[365847949,1749957032843,-445.60027456,0.00021917,4]
[365847951,1749957032855,-353.95660925,0.00021917,4]
[365847952,1749957032865,-440.22579691,0.00021917,4]
[365847953,1749957032875,-339.84798988,0.00021917,4]
[365847954,1749957032884,-460.0,0.00021917,4]
[365847955,1749957032895,-460.0,0.00021917,4]
[365847956,1749957032904,-460.0,0.00021917,4]
[365847957,1749957032915,-205.61392127,0.00021917,4]
[365847958,1749957032925,-470.96987276,0.00021917,4]
[365847959,1749957032935,-460.0,0.00021917,4]
[365847960,1749957032946,-437.69887592,0.00021917,4]
[365847961,1749957032955,-459.01231833,0.00021917,4]
[365847967,1749957033101,-460.0,0.00021917,4]
[365847968,1749957033112,-159.61727355,0.00021917,4]
[365847969,1749957033122,-460.0,0.00021917,4]
[365847970,1749957033134,-460.0,0.00021917,4]
[365847971,1749957033144,-460.0,0.00021917,4]
[365847972,1749957033153,-460.0,0.00021917,4]
[365847973,1749957033163,-460.0,0.00021917,4]
[365847974,1749957033173,-460.0,0.00021917,4]
[365847975,1749957033182,-460.0,0.00021917,4]
[365847976,1749957033192,-460.0,0.00021917,4]
[365847977,1749957033202,-384.46813735,0.00021917,4]
[365847978,1749957033214,-460.0,0.00021917,4]
[365847979,1749957033224,-439.84154193,0.00021917,4]
[365847980,1749957033234,-460.0,0.00021917,4]
[365847981,1749957033244,-434.1944289,0.00021917,4]
[365847982,1749957033253,-491.1234872,0.00021917,4]
[365847983,1749957033263,-460.0,0.00021917,4]
[365847984,1749957033273,-460.0,0.00021917,4]
[365847985,1749957033283,-398.23389338,0.00021917,4]
[365847986,1749957033293,-451.75850346,0.00021917,4]
[365847987,1749957033303,-515.70424883,0.00021917,4]
[365847988,1749957033313,-507.03073588,0.00021917,4]
[365847989,1749957033323,-627.93,0.00021917,4]
[365847990,1749957033334,-391.90048002,0.00021917,4]
[365847991,1749957033343,-386.68459102,0.00021917,4]
[365847992,1749957033353,-460.0,0.00021917,4]
[365847993,1749957033363,-597.34,0.00021917,4]
[365847994,1749957033373,-294.73191898,0.00021917,4]
[365847995,1749957033383,-460.0,0.00021917,4]
[365847996,1749957033394,-448.54835393,0.00021917,4]
[365847997,1749957033405,-373.50460622,0.00021917,4]
[365847998,1749957033415,-460.0,0.00021917,4]
[365847999,1749957033427,-460.0,0.00021917,4]
[365848000,1749957033437,-460.0,0.00021917,4]
[365848001,1749957033447,-454.41949045,0.00021917,4]
[365848002,1749957033457,-718.27,0.00021917,4]
[365848003,1749957033467,-460.0,0.00021917,4]
[365848004,1749957033476,-460.0,0.00021917,4]
[365848005,1749957033486,-460.0,0.00021917,4]
[365848006,1749957033497,-460.0,0.00021917,4]
[365848007,1749957033507,-460.0,0.00021917,4]
[365848008,1749957033516,-500.0,0.00021917,4]
[365848009,1749957033526,-440.0,0.00021917,4]
[365848010,1749957033536,-460.0,0.00021917,4]
[365848011,1749957033546,-444.95864272,0.00021917,4]
[365848012,1749957033560,-460.0,0.00021917,4]
[365848013,1749957033570,-451.2946965,0.00021917,4]
[365848014,1749957033580,-474.84250015,0.00021917,4]
[365848015,1749957033590,-440.0,0.00021917,4]
[365848016,1749957033607,-460.0,0.00021917,4]
[365848017,1749957033617,-460.0,0.00021917,4]
[365848018,1749957033626,-460.0,0.00021917,4]
[365848019,1749957033637,-460.0,0.00021917,4]
[365848020,1749957033648,-460.0,0.00021917,4]
[365848021,1749957033658,-431.06576476,0.00021917,4]
[365848022,1749957033668,-407.34028706,0.00021917,4]
[365848023,1749957033679,-438.88860491,0.00021917,4]
[365848024,1749957033689,-460.0,0.00021917,4]
[365848025,1749957033699,-460.0,0.00021917,4]
[365848026,1749957033708,-516.00576966,0.00021917,4]
[365848027,1749957033718,-390.0,0.00021917,4]
[365848028,1749957033728,-480.0,0.00021917,4]
[365848029,1749957033738,-460.0,0.00021917,4]
[365848030,1749957033747,-460.0,0.00021917,4]
[365848031,1749957033757,-460.0,0.00021917,4]
[365848032,1749957033767,-430.91676991,0.00021917,4]
[365848033,1749957033776,-446.92883562,0.00021917,4]
[365848034,1749957033786,-460.0,0.00021917,4]
[365848035,1749957033796,-754.2,0.00021917,4]
[365848036,1749957033806,-365.27748981,0.00021917,4]
[365848037,1749957033816,-433.09461863,0.00021917,4]
[365848038,1749957033827,-427.76379918,0.00021917,4]
[365848039,1749957033838,-460.0,0.00021917,4]
[365848040,1749957033847,-460.0,0.00021917,4]
[365848041,1749957033857,-460.0,0.00021917,4]
[365848042,1749957033868,-432.4427459,0.00021917,4]
[365848043,1749957033878,-432.77557216,0.00021917,4]
[365848044,1749957033887,-433.64891255,0.00021917,4]
[365848045,1749957033898,-460.0,0.00021917,4]
[365848046,1749957033907,-460.0,0.00021917,4]
[365848047,1749957033917,-445.62874497,0.00021917,4]
[365848048,1749957033927,-444.06002614,0.00021917,4]
[365848049,1749957033936,-460.0,0.00021917,4]
[365848050,1749957033946,-500.0,0.00021917,4]
[365848051,1749957033955,-500.0,0.00021917,4]
[365848052,1749957033965,-618.93995092,0.00021917,4]
[365848053,1749957033974,-437.27439333,0.00021917,4]
[365848054,1749957033984,-460.0,0.00021917,4]
[365848055,1749957033993,-460.0,0.00021917,4]
[365848056,1749957034003,-460.0,0.00021917,4]
[365848057,1749957034012,-450.60296144,0.00021917,4]
[365848058,1749957034023,-460.0,0.00021917,4]
[365848059,1749957034035,-460.0,0.00021917,4]
[365848060,1749957034044,-460.0,0.00021917,4]
[365848061,1749957034055,-531.72336148,0.00021917,4]
[365848062,1749957034064,-433.41677075,0.00021917,4]
[365848063,1749957034074,-460.0,0.00021917,4]
[365848064,1749957034084,-172.88115435,0.00021917,4]
[365848065,1749957034093,-460.0,0.00021917,4]
[365848066,1749957034102,-460.00731186,0.00021917,4]
[365848067,1749957034112,-460.0,0.00021917,4]
[365848068,1749957034122,-350.16196044,0.00021917,4]
[365848069,1749957034131,-460.0,0.00021917,4]
[365848070,1749957034141,-460.0,0.00021917,4]
[365848071,1749957034150,-460.0,0.00021917,4]
[365848072,1749957034160,-440.0,0.00021917,4]
[365848073,1749957034169,-460.0,0.00021917,4]
[365848074,1749957034179,-1935.04,0.00021917,4]
[365848075,1749957034189,-413.40862504,0.00021917,4]
[365848076,1749957034198,-489.55,0.00021917,2]
[365848077,1749957034208,-460.0,0.00021917,4]
[365848078,1749957034217,-460.0,0.00021917,4]
[365848079,1749957034227,-2556.6,0.00021917,4]
[365848080,1749957034236,-430.0,0.00021917,4]
[365848081,1749957034246,-534.69,0.00021917,4]
[365848082,1749957034256,-460.0,0.00021917,4]
[365848083,1749957034265,-460.0,0.00021917,4]
[365848084,1749957034274,-440.0,0.00021917,4]
[365848085,1749957034284,-786.61,0.00021917,4]
[365848086,1749957034294,-460.0,0.00021917,4]
[365848087,1749957034303,-460.0,0.00021917,4]
[365848088,1749957034313,-460.0,0.00021917,4]
[365848089,1749957034323,-460.0,0.00021917,4]
[365848090,1749957034332,-470.42771037,0.00021917,4]
[365848091,1749957034342,-460.0,0.00021917,4]
[365848092,1749957034352,-835.23,0.00021917,4]
[365848093,1749957034361,-435.17034596,0.00021917,4]
[365848094,1749957034372,-567.76,0.00021917,4]
[365848095,1749957034381,-460.0,0.00021917,4]
[365848096,1749957034391,-460.0,0.00021917,4]
[365848097,1749957034401,-624.12,0.00021917,4]
[365848098,1749957034411,-434.38491692,0.00021917,4]
[365848099,1749957034420,-460.0,0.00021917,4]
[365848100,1749957034430,-460.0,0.00021917,4]
[365848101,1749957034439,-340.0,0.00021917,4]
[365848102,1749957034449,-511.65,0.00021917,4]
[365848103,1749957034458,-460.0,0.00021917,4]
[365848104,1749957034468,-463.20957805,0.00021917,4]
[365848105,1749957034477,-460.0,0.00021917,4]
[365848106,1749957034486,-460.0,0.00021917,4]
[365848107,1749957034495,-460.0,0.00021917,4]
[365848108,1749957034509,-2269.01,0.00021917,4]
[365848109,1749957034522,-430.0,0.00021917,4]
[365848110,1749957034534,-698.94,0.00021917,4]
[365848111,1749957034547,-460.0,0.00021917,4]
[365848112,1749957034562,-460.0,0.00021917,4]
[365848113,1749957034572,-4037.64,0.00021917,4]
[365848114,1749957034584,-470.58036938,0.00021917,4]
[365848115,1749957034598,-2862.62,0.00021917,4]
[365848116,1749957034610,-460.0,0.00021917,4]
[365848117,1749957034622,-460.0,0.00021917,4]
[365848118,1749957034636,-436.72083527,0.00021917,4]
[365848119,1749957034648,-460.0,0.00021917,4]
[365848120,1749957034660,-530.64211272,0.00021917,4]
[365848121,1749957034674,-3366.67,0.00021917,4]
[365848122,1749957034693,-433.39837626,0.00021917,4]
[365848123,1749957034706,-460.0,0.00021917,4]
[365848124,1749957034717,-460.0,0.00021917,4]
[365848125,1749957034729,-928.5,0.00021917,4]
[365848126,1749957034740,-460.0,0.00021917,4]
[365848127,1749957034751,-460.0,0.00021917,4]
[365848128,1749957034764,-3798.54,0.00021917,4]
[365848129,1749957034777,-840.17,0.00021917,4]
[365848130,1749957034788,-460.0,0.00021917,4]
[365848131,1749957034802,-460.0,0.00021917,4]
[365848132,1749957034812,-460.0,0.00021917,4]
[365848133,1749957034823,-460.0,0.00021917,4]
[365848134,1749957034837,-429.72913841,0.00021917,4]
[365848135,1749957034848,-401.21898566,0.00021917,4]
[365848136,1749957034860,-460.0,0.00021917,4]
[365848137,1749957034872,-507.28330029,0.00021917,4]
[365848138,1749957034884,-460.0,0.00021917,4]
[365848139,1749957034897,-460.0,0.00021917,4]
[365848140,1749957034908,-460.0,0.00021917,4]
[365848141,1749957034921,-4684.17,0.00021917,4]
[365848142,1749957034935,-460.0,0.00021917,4]
[365848143,1749957034947,-460.0,0.00021917,4]
[365848144,1749957034959,-385.33633118,0.00021917,4]
[365848145,1749957034973,-462.26980743,0.00021917,4]
[365848146,1749957034986,-411.97185815,0.00021917,4]
[365848147,1749957034996,-460.0,0.00021917,4]
[365848148,1749957035007,-416.27403099,0.00021917,4]
[365848149,1749957035017,-460.0,0.00021917,4]
[365848150,1749957035030,-460.0,0.00021917,4]
[365848151,1749957035043,-460.0,0.00021917,4]
[365848152,1749957035056,-460.0,0.00021917,4]
[365848153,1749957035068,-1265.76,0.00021917,4]
[365848154,1749957035079,-460.0,0.00021917,4]
[365848155,1749957035089,-460.0,0.00021917,4]
[365848156,1749957035100,-460.0,0.00021917,4]
[365848157,1749957035112,-435.39655312,0.00021917,4]
[365848158,1749957035123,-460.0,0.00021917,4]
[365848159,1749957035137,-1633.92,0.00021917,4]
[365848160,1749957035149,-856.87,0.00021917,4]
[365848161,1749957035163,-500.0,0.00021917,4]
[365848162,1749957035173,-460.0,0.00021917,4]
[365848163,1749957035184,-426.95360167,0.00021917,4]
[365848164,1749957035195,-279.15347199,0.00021917,4]
[365848165,1749957035205,-460.0,0.00021917,4]
[365848166,1749957035216,-460.0,0.00021917,4]
[365848167,1749957035227,-1992.96,0.00021917,4]
[365848168,1749957035239,-460.0,0.00021917,4]
[365848169,1749957035249,-460.0,0.00021917,4]
[365848170,1749957035260,-982.09,0.00021917,4]
[365848171,1749957035271,-276.28674074,0.00021917,4]
[365848172,1749957035282,-472.14467366,0.00021917,4]
[365848173,1749957035295,-460.0,0.00021917,4]
[365848174,1749957035306,-435.4768396,0.00021917,4]
[365848175,1749957035317,-460.0,0.00021917,4]
[365848176,1749957035327,-585.25,0.00021917,4]
[365848177,1749957035339,-669.0,0.00021917,4]
[365848178,1749957035351,-406.05364931,0.00021917,4]
[365848179,1749957035362,-460.0,0.00021917,4]
[365848180,1749957035373,-783.8,0.00021917,4]
[365848181,1749957035385,-460.0,0.00021917,4]
[365848182,1749957035396,-1785.55,0.00021917,4]
[365848183,1749957035407,-440.0,0.00021917,4]
[365848184,1749957035419,-603.13339861,0.00021917,4]
[365848185,1749957035431,-460.0,0.00021917,4]
[365848186,1749957035442,-460.0,0.00021917,4]
[365848187,1749957035453,-573.55,0.00021917,4]
[365848188,1749957035465,-344.6166232,0.00021917,4]
[365848189,1749957035477,-460.0,0.00021917,4]
[365848190,1749957035488,-460.0,0.00021917,4]
[365848191,1749957035499,-460.0,0.00021917,4]
[365848192,1749957035509,-460.0,0.00021917,4]
[365848193,1749957035520,-460.0,0.00021917,4]
[365848194,1749957035530,-401.08107805,0.00021917,4]
[365848195,1749957035541,-455.33564271,0.00021917,4]
[365848196,1749957035555,-460.0,0.00021917,4]
[365848197,1749957035566,-460.0,0.00021917,4]
[365848198,1749957035577,-460.0,0.00021917,4]
[365848199,1749957035587,-460.0,0.00021917,4]
[365848200,1749957035599,-402.51101589,0.00021917,4]
[365848201,1749957035611,-335.0,0.00021917,4]
[365848202,1749957035621,-460.0,0.00021917,4]
[365848203,1749957035632,-2026.74,0.00021917,4]
[365848204,1749957035643,-402.72830568,0.00021917,4]
[365848205,1749957035653,-440.0,0.00021917,4]
[365848206,1749957035664,-460.0,0.00021917,4]
[365848207,1749957035675,-460.0,0.00021917,4]
[365848208,1749957035686,-401.03010705,0.00021917,4]
[365848209,1749957035697,-440.0,0.00021917,4]
[365848210,1749957035707,-504.91,0.00021917,4]
[365848211,1749957035718,-401.00586286,0.00021917,4]
[365848212,1749957035728,-460.0,0.00021917,4]
[365848213,1749957035739,-460.0,0.00021917,4]
[365848214,1749957035750,-460.0,0.00021917,4]
[365848215,1749957035761,-430.0,0.00021917,4]
[365848216,1749957035771,-440.0,0.00021917,4]
[365848217,1749957035782,-460.0,0.00021917,4]
[365848218,1749957035807,-576.52,0.00021917,4]
[365848219,1749957035821,-420.97128111,0.00021917,4]
[365848220,1749957035835,-402.40177775,0.00021917,4]
[365848221,1749957035849,-623.27,0.00021917,4]
[365848222,1749957035862,-434.1899756,0.00021917,4]
[365848223,1749957035875,-420.0,0.00021917,4]
[365848224,1749957035888,-396.84779824,0.00021917,4]
[365848225,1749957035900,-581.42,0.00021917,4]
[365848226,1749957035913,-935.69,0.00021917,4]
[365848227,1749957035926,-593.12,0.00021917,4]
[365848228,1749957035938,-460.0,0.00021917,4]
[365848229,1749957035951,-460.0,0.00021917,4]
[365848230,1749957035961,-460.0,0.00021917,4]
[365848231,1749957035973,-460.0,0.00021917,4]
[365848232,1749957035985,-460.0,0.00021917,4]
[365848233,1749957035997,-460.0,0.00021917,4]
[365848234,1749957036009,-460.0,0.00021917,4]
[365848235,1749957036020,-460.0,0.00021917,4]
[365848236,1749957036032,-3148.79,0.00021917,4]
[365848237,1749957036043,-460.0,0.00021917,4]
[365848238,1749957036055,-435.52396648,0.00021917,4]
[365848239,1749957036066,-460.0,0.00021917,4]
[365848240,1749957036077,-460.0,0.00021917,4]
[365848241,1749957036088,-460.0,0.00021917,4]
[365848242,1749957036100,-1299.81,0.00021917,4]
[365848243,1749957036111,-2007.11,0.00021917,4]
[365848244,1749957036123,-603.71,0.00021917,4]
[365848245,1749957036135,-469.0885075,0.00021917,4]
[365848246,1749957036145,-465.55044767,0.00021917,4]
[365848247,1749957036325,-173.96334616,0.00021917,4]
[365848248,1749957036341,-460.0,0.00021917,4]
[365848249,1749957036351,-480.02452809,0.00021917,4]
[365848250,1749957036360,-435.91991515,0.00021917,4]
[365848251,1749957036369,-460.0,0.00021917,4]
[365848252,1749957036378,-460.0,0.00021917,4]
[365848253,1749957036388,-250.0,0.00021917,4]
[365848254,1749957036398,-460.0,0.00021917,4]
[365848255,1749957036408,-460.0,0.00021917,4]
[365848256,1749957036417,-460.0,0.00021917,4]
[365848257,1749957036427,-621.56,0.00021917,4]
[365848258,1749957036436,-460.0,0.00021917,4]
[365848259,1749957036445,-460.0,0.00021917,4]
[365848260,1749957036455,-460.0,0.00021917,4]
[365848261,1749957036465,-488.07271145,0.00021917,4]
[365848262,1749957036474,-460.0,0.00021917,4]
[365848263,1749957036483,-460.0,0.00021917,4]
[365848264,1749957036492,-460.0,0.00021917,4]
[365848265,1749957036503,-460.0,0.00021917,4]
[365848266,1749957036512,-155.0,0.00021917,2]
[365848267,1749957036522,-457.05108035,0.00021917,4]
[365848268,1749957036531,-460.0,0.00021917,4]
[365848269,1749957036540,-261.67410705,0.00021917,4]
[365848270,1749957036550,-460.0,0.00021917,4]
[365848271,1749957036564,-460.0,0.00021917,4]
[365848272,1749957036574,-439.31015494,0.00021917,4]
[365848273,1749957036583,-460.0,0.00021917,4]
[365848274,1749957036593,-460.0,0.00021917,4]
[365848275,1749957036602,-460.0,0.00021917,4]
[365848276,1749957036612,-1217.29,0.00021917,4]
[365848277,1749957036622,-410.0,0.00021917,4]
[365848278,1749957036632,-2123.16,0.00021917,4]
[365848279,1749957036641,-460.0,0.00021917,4]
[365848280,1749957036651,-440.0,0.00021917,4]
[365848281,1749957036660,-460.0,0.00021917,4]
[365848282,1749957036669,-460.0,0.00021917,4]
[365848283,1749957036678,-644.4,0.00021917,4]
[365848284,1749957036688,-500.0,0.00021917,4]
[365848285,1749957036697,-500.0,0.00021917,4]
[365848286,1749957036707,-500.0,0.00021917,4]
[365848287,1749957036716,-500.0,0.00021917,4]
[365848288,1749957036725,-460.0,0.00021917,4]
[365848289,1749957036734,-403.19456943,0.00021917,4]
[365848290,1749957036744,-460.0,0.00021917,4]
[365848291,1749957036753,-2074.53,0.00021925,2]
[365848292,1749957036763,-172.0,0.00022,2]
[365848293,1749957036772,-406.06299563,0.00022068,2]
[365848294,1749957036785,-887.47691889,0.00022163,2]
[365848295,1749957036795,-770.96,0.00022172,2]
[365848296,1749957036805,-500.0,0.00022173,2]
[365848297,1749957036815,-500.0,0.00022173,2]
[365848298,1749957036826,-500.0,0.00022173,2]
[365848299,1749957036835,-500.0,0.00022173,2]
[365848300,1749957036844,-502.74950445,0.00022173,2]
[365848301,1749957036854,-154.918297,0.00022173,2]
[365848302,1749957036864,-248.80962452,0.00022173,2]
[365848303,1749957036873,-500.0,0.0002219,2]
[365848304,1749957036882,-500.0,0.0002219,4]
[365848305,1749957036891,-500.0,0.0002219,4]
[365848306,1749957036901,-500.0,0.0002219,4]
[365848307,1749957036911,-500.0,0.0002219,4]
[365848308,1749957036921,-500.0,0.00022191,4]
[365848309,1749957036931,-199.2384521,0.00022191,4]
[365848310,1749957036941,-460.0,0.00022191,4]
[365848311,1749957036950,-460.0,0.00022191,4]
[365848312,1749957036960,-460.0,0.00022191,4]
[365848313,1749957036970,-460.0,0.00022191,4]
[365848314,1749957036980,-460.0,0.00022191,4]
[365848315,1749957036990,-460.0,0.00022191,4]
[365848316,1749957036999,-460.0,0.00022191,4]
[365848317,1749957037009,-460.0,0.00022191,4]
[365848318,1749957037018,-460.0,0.00022191,4]
[365848319,1749957037028,-460.0,0.00022191,4]
[365848320,1749957037038,-346.23688875,0.00022191,4]
[365848321,1749957037048,-460.0,0.00022191,4]
[365848322,1749957037057,-460.0,0.00022191,4]
[365848323,1749957037066,-375.52434879,0.00022191,4]
[365848324,1749957037075,-349.59661168,0.00022191,4]
[365848325,1749957037085,-385.18331014,0.00022191,4]
[365848326,1749957037094,-460.0,0.00022191,4]
[365848327,1749957037104,-346.70529747,0.00022191,4]
[365848328,1749957037113,-460.0,0.00022191,4]
[365848329,1749957037122,-460.0,0.00022191,4]
[365848330,1749957037132,-460.0,0.00022191,4]
[365848331,1749957037141,-460.0,0.00022191,4]
[365848332,1749957037153,-325.07907654,0.00022191,4]
[365848333,1749957037163,-460.0,0.00022191,4]
[365848334,1749957037173,-460.0,0.00022191,4]
[365848335,1749957037182,-504.9981341,0.00022191,4]
[365848336,1749957037191,-267.12169814,0.00022191,4]
[365848337,1749957037200,-378.52999489,0.00022191,4]
[365848338,1749957037209,-445.6761328,0.00022191,4]
[365848339,1749957037219,-460.0,0.00022191,4]
[365848340,1749957037229,-460.0,0.00022191,4]
[365848341,1749957037238,-435.30222939,0.00022191,4]
[365848342,1749957037247,-460.0,0.00022191,4]
[365848343,1749957037257,-460.0,0.00022191,4]
[365848344,1749957037266,-627.93,0.00022191,4]
[365848345,1749957037275,-409.69361993,0.00022191,4]
[365848346,1749957037284,-597.34,0.00022191,4]
[365848347,1749957037294,-467.30650586,0.00022191,4]
[365848348,1749957037304,-460.0,0.00022191,4]
[365848349,1749957037314,-460.0,0.00022191,4]
[365848350,1749957037323,-427.58598804,0.00022191,4]
[365848351,1749957037333,-718.27,0.00022191,4]
[365848352,1749957037342,-460.0,0.00022191,4]
[365848353,1749957037351,-460.0,0.00022191,4]
[365848354,1749957037360,-460.0,0.00022191,4]
[365848355,1749957037370,-460.0,0.00022191,4]
[365848356,1749957037380,-460.0,0.00022191,4]
[365848357,1749957037389,-500.0,0.00022191,4]
[365848358,1749957037399,-460.0,0.00022191,4]
[365848359,1749957037409,-460.0,0.00022191,4]
[365848360,1749957037418,-460.0,0.00022191,4]
[365848361,1749957037427,-320.0,0.00022191,4]